[Event "Titled Tuesday Blitz August 22 Late 2023"]
[White "HamedWafa4"]
[Black "Jaskolka, Tomasz"]
[BlackFideId "1170791"]
[WhiteElo "2543"]
[BlackElo "2522"]
[Result "1-0"]
[Round "3"]
[TimeControl "180+1"]
[Date "2023.08.22"]
[WhiteClock "0:01:02"]
[BlackClock "0:00:01"]
[Board "137"]

1. e4 {[%clk 0:03:00]}  d5 {[%clk 0:02:59]} 2. exd5 {[%clk 0:03:00]}  Nf6 {[%clk 0:03:00]} 3. Nf3 {[%clk 0:02:59]}  Bg4 {[%clk 0:02:58]} 4. h3 {[%clk 0:02:58]}  Bxf3 {[%clk 0:02:58]} 5. Qxf3 {[%clk 0:02:59]}  Qxd5 {[%clk 0:02:59]} 6. Qxd5 {[%clk 0:02:59]}  Nxd5 {[%clk 0:03:00]} 7. Nc3 {[%clk 0:02:57]}  Nxc3 {[%clk 0:02:59]} 8. bxc3 {[%clk 0:02:53]}  g6 {[%clk 0:02:58]} 9. Be2 {[%clk 0:02:50]}  Bg7 {[%clk 0:02:59]} 10. Bf3 {[%clk 0:02:50]}  c6 {[%clk 0:02:57]} 11. Rb1 {[%clk 0:02:50]}  b6 {[%clk 0:02:54]} 12. Ba3 {[%clk 0:02:51]}  Kd7 {[%clk 0:02:49]} 13. O-O {[%clk 0:02:50]}  e6 {[%clk 0:02:41]} 14. d4 {[%clk 0:02:46]}  Na6 {[%clk 0:02:39]} 15. Rfd1 {[%clk 0:02:42]}  Nc7 {[%clk 0:02:38]} 16. c4 {[%clk 0:02:39]}  Rac8 {[%clk 0:02:31]} 17. Bb2 {[%clk 0:02:37]}  Ne8 {[%clk 0:02:10]} 18. a4 {[%clk 0:02:08]}  Nd6 {[%clk 0:02:00]} 19. d5 {[%clk 0:02:02]}  Bxb2 {[%clk 0:01:49]} 20. dxc6+ {[%clk 0:02:01]}  Ke7 {[%clk 0:01:41]} 21. Rxb2 {[%clk 0:02:00]}  Rhd8 {[%clk 0:01:34]} 22. Rb4 {[%clk 0:01:58]}  Nf5 {[%clk 0:01:28]} 23. Rxd8 {[%clk 0:01:56]}  Rxd8 {[%clk 0:01:25]} 24. c5 {[%clk 0:01:56]}  Rd4 {[%clk 0:01:00]} 25. cxb6 {[%clk 0:01:28]}  Rxb4 {[%clk 0:00:58]} 26. c7 {[%clk 0:01:23]}  Kd7 {[%clk 0:00:35]} 27. Bc6+ {[%clk 0:01:20]}  Kxc6 {[%clk 0:00:31]} 28. c8=Q+ {[%clk 0:01:19]}  Kxb6 {[%clk 0:00:31]} 29. Qd7 {[%clk 0:01:14]}  Rb1+ {[%clk 0:00:20]} 30. Kh2 {[%clk 0:01:13]}  Rb2 {[%clk 0:00:14]} 31. Qxf7 {[%clk 0:01:11]}  Rxc2 {[%clk 0:00:15]} 32. Qxe6+ {[%clk 0:01:12]}  Rc6 {[%clk 0:00:14]} 33. Qb3+ {[%clk 0:01:12]}  Kc7 {[%clk 0:00:14]} 34. Qf7+ {[%clk 0:01:12]}  Kb6 {[%clk 0:00:14]} 35. Qxh7 {[%clk 0:01:13]}  Re6 {[%clk 0:00:12]} 36. f4 {[%clk 0:01:12]}  Rc6 {[%clk 0:00:09]} 37. g4 {[%clk 0:01:11]}  Rc2+ {[%clk 0:00:10]} 38. Kg1 {[%clk 0:01:09]}  Rc1+ {[%clk 0:00:10]} 39. Kf2 {[%clk 0:01:09]}  Rc2+ {[%clk 0:00:11]} 40. Ke1 {[%clk 0:01:09]}  Nd4 {[%clk 0:00:07]} 41. Qxg6+ {[%clk 0:01:09]}  Kc5 {[%clk 0:00:08]} 42. Qd3 {[%clk 0:01:04]}  Rc1+ {[%clk 0:00:02]} 43. Kd2 {[%clk 0:01:03]}  Rc3 {[%clk 0:00:01]} 44. Qxc3+ {[%clk 0:01:02]} 1-0


[Site "https://www.chess.com"]

[Event "Titled Tuesday Blitz August 22 Late 2023"]
[White "Zampronha, Wladimir Camilo"]
[Black "Jovic, Stanoje"]
[WhiteFideId "2103087"]
[BlackFideId "905020"]
[WhiteElo "2307"]
[BlackElo "2535"]
[Result "0-1"]
[Round "3"]
[TimeControl "180+1"]
[Date "2023.08.22"]
[WhiteClock "0:00:05"]
[BlackClock "0:00:40"]
[Board "141"]

1. e4 {[%clk 0:02:57]}  c6 {[%clk 0:03:00]} 2. d4 {[%clk 0:02:55]}  d5 {[%clk 0:03:00]} 3. e5 {[%clk 0:02:53]}  c5 {[%clk 0:03:00]} 4. Nf3 {[%clk 0:02:53]}  Nc6 {[%clk 0:02:59]} 5. c4 {[%clk 0:02:52]}  Bg4 {[%clk 0:02:58]} 6. cxd5 {[%clk 0:02:51]}  Bxf3 {[%clk 0:02:58]} 7. Qxf3 {[%clk 0:02:47]}  Nxd4 {[%clk 0:02:58]} 8. Qd1 {[%clk 0:02:46]}  e6 {[%clk 0:02:56]} 9. dxe6 {[%clk 0:02:40]}  fxe6 {[%clk 0:02:46]} 10. Be3 {[%clk 0:02:33]}  Ne7 {[%clk 0:02:43]} 11. Nc3 {[%clk 0:02:26]}  Nef5 {[%clk 0:02:40]} 12. Bc4 {[%clk 0:02:23]}  Be7 {[%clk 0:02:35]} 13. O-O {[%clk 0:02:18]}  O-O {[%clk 0:02:33]} 14. a4 {[%clk 0:02:12]}  Bg5 {[%clk 0:02:27]} 15. Bxg5 {[%clk 0:02:02]}  Qxg5 {[%clk 0:02:25]} 16. Ne4 {[%clk 0:01:58]}  Qh4 {[%clk 0:02:13]} 17. Ng3 {[%clk 0:01:56]}  Nxg3 {[%clk 0:02:07]} 18. hxg3 {[%clk 0:01:55]}  Qg5 {[%clk 0:02:01]} 19. Re1 {[%clk 0:01:41]}  Rf5 {[%clk 0:02:00]} 20. Qc1 {[%clk 0:01:34]}  Qh5 {[%clk 0:01:47]} 21. f4 {[%clk 0:01:28]}  g5 {[%clk 0:01:36]} 22. Qe3 {[%clk 0:01:22]}  Raf8 {[%clk 0:01:29]} 23. Rf1 {[%clk 0:01:17]}  gxf4 {[%clk 0:01:17]} 24. gxf4 {[%clk 0:01:15]}  Qg4 {[%clk 0:01:16]} 25. Qe4 {[%clk 0:00:39]}  Rxf4 {[%clk 0:01:08]} 26. Rxf4 {[%clk 0:00:36]}  Rxf4 {[%clk 0:01:08]} 27. Qxb7 {[%clk 0:00:33]}  Nf3+ {[%clk 0:01:07]} 28. Kf2 {[%clk 0:00:26]}  Nxe5+ {[%clk 0:01:04]} 29. Kg1 {[%clk 0:00:27]}  Nxc4 {[%clk 0:01:02]} 30. Qc8+ {[%clk 0:00:14]}  Kg7 {[%clk 0:00:59]} 31. Qxc5 {[%clk 0:00:15]}  Qf5 {[%clk 0:00:57]} 32. Qxa7+ {[%clk 0:00:15]}  Kg6 {[%clk 0:00:56]} 33. Qb7 {[%clk 0:00:12]}  Ne3 {[%clk 0:00:53]} 34. Re1 {[%clk 0:00:08]}  Qc5 {[%clk 0:00:48]} 35. Kh2 {[%clk 0:00:06]}  Rh4+ {[%clk 0:00:45]} 36. Kg3 {[%clk 0:00:05]}  Qg5+ {[%clk 0:00:43]} 37. Kf2 {[%clk 0:00:06]}  Ng4+ {[%clk 0:00:42]} 38. Kg1 {[%clk 0:00:06]}  Qc5+ {[%clk 0:00:41]} 39. Kf1 {[%clk 0:00:05]}  Qf2# {[%clk 0:00:40]} 0-1


[Site "https://www.chess.com"]

[Event "Titled Tuesday Blitz August 22 Late 2023"]
[White "Sivakumar, Shaaketh"]
[Black "Ai, Evan"]
[WhiteFideId "30940176"]
[BlackFideId "2094770"]
[WhiteElo "2532"]
[BlackElo "2281"]
[Result "1-0"]
[Round "3"]
[TimeControl "180+1"]
[Date "2023.08.22"]
[WhiteClock "0:02:33"]
[BlackClock "0:00:24"]
[Board "142"]

1. Nf3 {[%clk 0:03:00]}  Nf6 {[%clk 0:02:54]} 2. g3 {[%clk 0:03:00]}  d5 {[%clk 0:02:51]} 3. Bg2 {[%clk 0:03:00]}  Bf5 {[%clk 0:02:50]} 4. b4 {[%clk 0:02:59]}  e6 {[%clk 0:02:50]} 5. a3 {[%clk 0:02:59]}  a5 {[%clk 0:02:50]} 6. b5 {[%clk 0:02:58]}  Bc5 {[%clk 0:02:48]} 7. Bb2 {[%clk 0:02:58]}  Nbd7 {[%clk 0:02:47]} 8. O-O {[%clk 0:02:58]}  O-O {[%clk 0:02:37]} 9. d3 {[%clk 0:02:57]}  Qe7 {[%clk 0:02:22]} 10. Nbd2 {[%clk 0:02:53]}  e5 {[%clk 0:02:17]} 11. e4 {[%clk 0:02:48]}  dxe4 {[%clk 0:02:18]} 12. Nh4 {[%clk 0:02:48]}  Bg6 {[%clk 0:02:11]} 13. Nxg6 {[%clk 0:02:47]}  hxg6 {[%clk 0:02:12]} 14. Nxe4 {[%clk 0:02:47]}  Nxe4 {[%clk 0:01:59]} 15. Bxe4 {[%clk 0:02:48]}  Rab8 {[%clk 0:01:36]} 16. Qf3 {[%clk 0:02:47]}  b6 {[%clk 0:01:27]} 17. Rfe1 {[%clk 0:02:42]}  Bd6 {[%clk 0:01:16]} 18. d4 {[%clk 0:02:38]}  f5 {[%clk 0:00:54]} 19. Bd5+ {[%clk 0:02:37]}  Kh7 {[%clk 0:00:51]} 20. dxe5 {[%clk 0:02:37]}  Nxe5 {[%clk 0:00:46]} 21. Qg2 {[%clk 0:02:36]}  Qg5 {[%clk 0:00:24]} 22. Bxe5 {[%clk 0:02:33]} 1-0


[Site "https://www.chess.com"]

[Event "Titled Tuesday Blitz August 22 Late 2023"]
[White "subham777"]
[Black "Garcia-Castany Musellas, Gal.la"]
[BlackFideId "2241803"]
[WhiteElo "2531"]
[BlackElo "2266"]
[Result "1-0"]
[Round "3"]
[TimeControl "180+1"]
[Date "2023.08.22"]
[WhiteClock "0:00:24"]
[BlackClock "0:00:00"]
[Board "144"]

1. e4 {[%clk 0:03:00]}  e5 {[%clk 0:02:57]} 2. Nf3 {[%clk 0:02:59]}  Nc6 {[%clk 0:02:58]} 3. Bc4 {[%clk 0:02:57]}  Bc5 {[%clk 0:02:57]} 4. c3 {[%clk 0:02:56]}  Nf6 {[%clk 0:02:56]} 5. d3 {[%clk 0:02:56]}  d6 {[%clk 0:02:53]} 6. Nbd2 {[%clk 0:02:56]}  a6 {[%clk 0:02:53]} 7. Nf1 {[%clk 0:02:13]}  Ba7 {[%clk 0:02:30]} 8. Ng3 {[%clk 0:02:13]}  Na5 {[%clk 0:02:24]} 9. Bd5 {[%clk 0:02:11]}  c6 {[%clk 0:02:21]} 10. Bb3 {[%clk 0:02:10]}  Nxb3 {[%clk 0:02:16]} 11. axb3 {[%clk 0:02:11]}  O-O {[%clk 0:02:04]} 12. Bg5 {[%clk 0:02:10]}  h6 {[%clk 0:02:04]} 13. Bh4 {[%clk 0:02:09]}  Re8 {[%clk 0:01:32]} 14. Qd2 {[%clk 0:02:06]}  d5 {[%clk 0:01:31]} 15. Nh5 {[%clk 0:01:58]}  Kh7 {[%clk 0:01:00]} 16. exd5 {[%clk 0:01:39]}  e4 {[%clk 0:00:56]} 17. Nxf6+ {[%clk 0:01:12]}  gxf6 {[%clk 0:00:51]} 18. dxe4 {[%clk 0:01:12]}  Rxe4+ {[%clk 0:00:51]} 19. Kf1 {[%clk 0:01:11]}  Qxd5 {[%clk 0:00:51]} 20. Qxd5 {[%clk 0:01:06]}  cxd5 {[%clk 0:00:52]} 21. Bxf6 {[%clk 0:01:06]}  Bf5 {[%clk 0:00:40]} 22. Rd1 {[%clk 0:01:00]}  Re6 {[%clk 0:00:25]} 23. Bd4 {[%clk 0:00:59]}  Bb8 {[%clk 0:00:20]} 24. Be3 {[%clk 0:00:52]}  Be4 {[%clk 0:00:19]} 25. Nd4 {[%clk 0:00:51]}  Re8 {[%clk 0:00:15]} 26. h4 {[%clk 0:00:45]}  Be5 {[%clk 0:00:15]} 27. h5 {[%clk 0:00:45]}  Rad8 {[%clk 0:00:15]} 28. Rh4 {[%clk 0:00:43]}  Bf6 {[%clk 0:00:11]} 29. Rf4 {[%clk 0:00:42]}  Kg7 {[%clk 0:00:10]} 30. Rg4+ {[%clk 0:00:36]}  Kh7 {[%clk 0:00:10]} 31. f3 {[%clk 0:00:35]}  Bxf3 {[%clk 0:00:03]} 32. Nxf3 {[%clk 0:00:24]}  Rxe3 {[%clk 0:00:00]} 33. Rf4 {[%clk 0:00:24]} 1-0


[Site "https://www.chess.com"]

[Event "Titled Tuesday Blitz August 22 Late 2023"]
[White "Akhayan, Ruben"]
[Black "Keleberda, Tymur"]
[WhiteFideId "204439"]
[BlackFideId "14174294"]
[WhiteElo "2258"]
[BlackElo "2530"]
[Result "0-1"]
[Round "3"]
[TimeControl "180+1"]
[Date "2023.08.22"]
[WhiteClock "0:00:03"]
[BlackClock "0:00:04"]
[Board "146"]

1. e4 {[%clk 0:03:00]}  e6 {[%clk 0:02:58]} 2. d4 {[%clk 0:03:00]}  d5 {[%clk 0:02:58]} 3. Nc3 {[%clk 0:03:01]}  Be7 {[%clk 0:02:55]} 4. exd5 {[%clk 0:02:53]}  exd5 {[%clk 0:02:54]} 5. Bd3 {[%clk 0:02:54]}  Nf6 {[%clk 0:02:49]} 6. Nge2 {[%clk 0:02:53]}  O-O {[%clk 0:02:48]} 7. O-O {[%clk 0:02:53]}  c5 {[%clk 0:02:40]} 8. dxc5 {[%clk 0:02:52]}  Nbd7 {[%clk 0:02:36]} 9. Bg5 {[%clk 0:02:49]}  Nxc5 {[%clk 0:02:35]} 10. Bxf6 {[%clk 0:02:42]}  Bxf6 {[%clk 0:02:36]} 11. Nxd5 {[%clk 0:02:36]}  Bxb2 {[%clk 0:02:29]} 12. Rb1 {[%clk 0:02:36]}  Be5 {[%clk 0:02:28]} 13. Ng3 {[%clk 0:02:25]}  g6 {[%clk 0:02:13]} 14. c4 {[%clk 0:02:02]}  Nxd3 {[%clk 0:02:05]} 15. Qxd3 {[%clk 0:02:02]}  b6 {[%clk 0:01:52]} 16. Rfe1 {[%clk 0:01:57]}  Bg7 {[%clk 0:01:51]} 17. Rbd1 {[%clk 0:01:26]}  Be6 {[%clk 0:01:47]} 18. h3 {[%clk 0:01:22]}  Rc8 {[%clk 0:01:30]} 19. Ne4 {[%clk 0:01:13]}  Qh4 {[%clk 0:01:21]} 20. Ne3 {[%clk 0:00:45]}  Rfd8 {[%clk 0:01:09]} 21. Qc2 {[%clk 0:00:46]}  Bd4 {[%clk 0:01:03]} 22. Nf1 {[%clk 0:00:33]}  Rxc4 {[%clk 0:00:53]} 23. Qe2 {[%clk 0:00:31]}  Rd7 {[%clk 0:00:39]} 24. Rd2 {[%clk 0:00:31]}  Rcc7 {[%clk 0:00:23]} 25. Nfg3 {[%clk 0:00:31]}  Bg7 {[%clk 0:00:23]} 26. Red1 {[%clk 0:00:31]}  Rxd2 {[%clk 0:00:23]} 27. Rxd2 {[%clk 0:00:31]}  Rc1+ {[%clk 0:00:23]} 28. Rd1 {[%clk 0:00:30]}  Rxd1+ {[%clk 0:00:22]} 29. Qxd1 {[%clk 0:00:31]}  h5 {[%clk 0:00:22]} 30. Qe2 {[%clk 0:00:28]}  Qf4 {[%clk 0:00:21]} 31. Nf1 {[%clk 0:00:26]}  Be5 {[%clk 0:00:19]} 32. Ned2 {[%clk 0:00:24]}  Bd6 {[%clk 0:00:14]} 33. a4 {[%clk 0:00:23]}  Qxa4 {[%clk 0:00:14]} 34. Ne4 {[%clk 0:00:21]}  Be5 {[%clk 0:00:12]} 35. Ng5 {[%clk 0:00:21]}  Qd4 {[%clk 0:00:05]} 36. Nxe6 {[%clk 0:00:21]}  fxe6 {[%clk 0:00:06]} 37. Qa2 {[%clk 0:00:18]}  Qd7 {[%clk 0:00:05]} 38. Qc2 {[%clk 0:00:18]}  Kg7 {[%clk 0:00:04]} 39. Ne3 {[%clk 0:00:18]}  Bf6 {[%clk 0:00:05]} 40. g3 {[%clk 0:00:18]}  b5 {[%clk 0:00:05]} 41. Qe4 {[%clk 0:00:18]}  a5 {[%clk 0:00:05]} 42. g4 {[%clk 0:00:17]}  b4 {[%clk 0:00:05]} 43. Qc4 {[%clk 0:00:13]}  Qe7 {[%clk 0:00:03]} 44. gxh5 {[%clk 0:00:13]}  gxh5 {[%clk 0:00:04]} 45. Kh2 {[%clk 0:00:12]}  Be5+ {[%clk 0:00:04]} 46. Kh1 {[%clk 0:00:12]}  a4 {[%clk 0:00:03]} 47. Qc2 {[%clk 0:00:08]}  b3 {[%clk 0:00:03]} 48. Qd1 {[%clk 0:00:08]}  Qg5 {[%clk 0:00:03]} 49. Ng2 {[%clk 0:00:06]}  b2 {[%clk 0:00:02]} 50. Qd7+ {[%clk 0:00:06]}  Kh6 {[%clk 0:00:02]} 51. Qb7 {[%clk 0:00:05]}  Qc1+ {[%clk 0:00:01]} 52. Ne1 {[%clk 0:00:05]}  Qxe1+ {[%clk 0:00:02]} 53. Kg2 {[%clk 0:00:05]}  b1=Q {[%clk 0:00:03]} 54. Qf7 {[%clk 0:00:04]}  Qg6+ {[%clk 0:00:03]} 55. Qxg6+ {[%clk 0:00:04]}  Kxg6 {[%clk 0:00:04]} 56. h4 {[%clk 0:00:03]}  Qe2 {[%clk 0:00:04]} 0-1


[Site "https://www.chess.com"]

[Event "Titled Tuesday Blitz August 22 Late 2023"]
[White "tomobeast"]
[Black "Ansh M Shah"]
[BlackFideId "25033379"]
[WhiteElo "2205"]
[BlackElo "2530"]
[Result "1-0"]
[Round "3"]
[TimeControl "180+1"]
[Date "2023.08.22"]
[WhiteClock "0:00:56"]
[BlackClock "0:01:53"]
[Board "147"]

1. e4 {[%clk 0:03:00]}  c5 {[%clk 0:02:59]} 2. Nf3 {[%clk 0:02:57]}  Nc6 {[%clk 0:02:59]} 3. d4 {[%clk 0:02:54]}  cxd4 {[%clk 0:03:00]} 4. Nxd4 {[%clk 0:02:54]}  g6 {[%clk 0:03:00]} 5. c4 {[%clk 0:02:43]}  Bg7 {[%clk 0:02:57]} 6. Be3 {[%clk 0:02:42]}  Nf6 {[%clk 0:02:57]} 7. Nc3 {[%clk 0:02:42]}  d6 {[%clk 0:02:52]} 8. Be2 {[%clk 0:02:41]}  O-O {[%clk 0:02:52]} 9. Qd2 {[%clk 0:02:38]}  Nxd4 {[%clk 0:02:53]} 10. Bxd4 {[%clk 0:02:37]}  Be6 {[%clk 0:02:53]} 11. Rc1 {[%clk 0:02:30]}  a6 {[%clk 0:02:53]} 12. O-O {[%clk 0:02:28]}  Rc8 {[%clk 0:02:52]} 13. b3 {[%clk 0:02:26]}  Qa5 {[%clk 0:02:47]} 14. Rfd1 {[%clk 0:02:18]}  Rfe8 {[%clk 0:02:38]} 15. Bxf6 {[%clk 0:01:19]}  exf6 {[%clk 0:02:16]} 16. Nd5 {[%clk 0:00:58]}  Bxd5 {[%clk 0:01:53]} 17. Qxa5 {[%clk 0:00:56]} 1-0


[Site "https://www.chess.com"]

[Event "Titled Tuesday Blitz August 22 Late 2023"]
[White "Ozkan, Taha"]
[Black "Feliz Dotel, Dewar Bienvenido"]
[WhiteFideId "34577173"]
[BlackFideId "6402801"]
[WhiteElo "2526"]
[BlackElo "2169"]
[Result "1-0"]
[Round "3"]
[TimeControl "180+1"]
[Date "2023.08.22"]
[WhiteClock "0:00:36"]
[BlackClock "0:00:00"]
[Board "150"]

1. d4 {[%clk 0:02:59]}  d5 {[%clk 0:03:00]} 2. Nf3 {[%clk 0:02:59]}  e6 {[%clk 0:03:00]} 3. c4 {[%clk 0:02:59]}  c5 {[%clk 0:03:00]} 4. cxd5 {[%clk 0:03:00]}  exd5 {[%clk 0:03:01]} 5. Nc3 {[%clk 0:03:00]}  Nc6 {[%clk 0:03:01]} 6. Bg5 {[%clk 0:02:58]}  Be7 {[%clk 0:02:59]} 7. Bxe7 {[%clk 0:02:58]}  Ngxe7 {[%clk 0:02:59]} 8. e3 {[%clk 0:02:58]}  cxd4 {[%clk 0:02:49]} 9. Nxd4 {[%clk 0:02:59]}  O-O {[%clk 0:02:45]} 10. Be2 {[%clk 0:02:58]}  Qb6 {[%clk 0:02:41]} 11. Nb3 {[%clk 0:02:53]}  Be6 {[%clk 0:02:34]} 12. O-O {[%clk 0:02:50]}  a5 {[%clk 0:02:34]} 13. Nb5 {[%clk 0:02:45]}  a4 {[%clk 0:02:28]} 14. N3d4 {[%clk 0:02:45]}  Nxd4 {[%clk 0:02:29]} 15. Qxd4 {[%clk 0:02:44]}  Qxd4 {[%clk 0:02:26]} 16. Nxd4 {[%clk 0:02:45]}  Nc6 {[%clk 0:02:22]} 17. Rfd1 {[%clk 0:02:45]}  Rfc8 {[%clk 0:02:09]} 18. Nb5 {[%clk 0:02:23]}  Ne5 {[%clk 0:01:57]} 19. Rac1 {[%clk 0:02:18]}  Nc4 {[%clk 0:01:57]} 20. Bxc4 {[%clk 0:02:01]}  Rxc4 {[%clk 0:01:48]} 21. Rxc4 {[%clk 0:02:00]}  dxc4 {[%clk 0:01:48]} 22. Rd6 {[%clk 0:01:57]}  h6 {[%clk 0:01:39]} 23. Kf1 {[%clk 0:01:56]}  Ra5 {[%clk 0:01:33]} 24. Nd4 {[%clk 0:01:51]}  a3 {[%clk 0:01:25]} 25. Rb6 {[%clk 0:01:43]}  axb2 {[%clk 0:01:18]} 26. Rxb2 {[%clk 0:01:44]}  Bd5 {[%clk 0:00:51]} 27. f3 {[%clk 0:01:21]}  c3 {[%clk 0:00:50]} 28. Rc2 {[%clk 0:01:21]}  Ra3 {[%clk 0:00:48]} 29. Kf2 {[%clk 0:01:15]}  Rxa2 {[%clk 0:00:46]} 30. Rxa2 {[%clk 0:01:08]}  Bxa2 {[%clk 0:00:46]} 31. Ke2 {[%clk 0:01:08]}  Bc4+ {[%clk 0:00:46]} 32. Kd1 {[%clk 0:01:08]}  b5 {[%clk 0:00:46]} 33. Kc2 {[%clk 0:01:08]}  Bf1 {[%clk 0:00:34]} 34. g3 {[%clk 0:00:59]}  Bg2 {[%clk 0:00:34]} 35. Nc6 {[%clk 0:00:59]}  Bxf3 {[%clk 0:00:32]} 36. Nb4 {[%clk 0:00:59]}  g5 {[%clk 0:00:28]} 37. Kxc3 {[%clk 0:00:59]}  Kg7 {[%clk 0:00:28]} 38. Kd4 {[%clk 0:00:55]}  Kf6 {[%clk 0:00:26]} 39. e4 {[%clk 0:00:52]}  Be2 {[%clk 0:00:22]} 40. Kd5 {[%clk 0:00:47]}  h5 {[%clk 0:00:17]} 41. h4 {[%clk 0:00:42]}  gxh4 {[%clk 0:00:16]} 42. gxh4 {[%clk 0:00:43]}  Bc4+ {[%clk 0:00:10]} 43. Kd6 {[%clk 0:00:43]}  Bf1 {[%clk 0:00:07]} 44. Nd5+ {[%clk 0:00:42]}  Kg6 {[%clk 0:00:08]} 45. Ke5 {[%clk 0:00:41]}  Bg2 {[%clk 0:00:04]} 46. Nf4+ {[%clk 0:00:38]}  Kg7 {[%clk 0:00:02]} 47. Nxg2 {[%clk 0:00:39]}  f6+ {[%clk 0:00:03]} 48. Ke6 {[%clk 0:00:39]}  b4 {[%clk 0:00:02]} 49. Ne3 {[%clk 0:00:38]}  b3 {[%clk 0:00:02]} 50. Nd1 {[%clk 0:00:37]}  Kg6 {[%clk 0:00:01]} 51. Nb2 {[%clk 0:00:38]}  Kg7 {[%clk 0:00:01]} 52. Kf5 {[%clk 0:00:36]}  Kf7 {[%clk 0:00:00]} 53. Nc4 {[%clk 0:00:36]} 1-0


[Site "https://www.chess.com"]

[Event "Titled Tuesday Blitz August 22 Late 2023"]
[White "Hartikainen, Jarmo"]
[Black "Lima, Kleyton Alcantara"]
[WhiteFideId "503134"]
[BlackFideId "22718397"]
[WhiteElo "2107"]
[BlackElo "2525"]
[Result "0-1"]
[Round "3"]
[TimeControl "180+1"]
[Date "2023.08.22"]
[WhiteClock "0:00:04"]
[BlackClock "0:00:30"]
[Board "152"]

1. e4 {[%clk 0:03:00]}  c5 {[%clk 0:02:58]} 2. c3 {[%clk 0:03:00]}  Nf6 {[%clk 0:02:57]} 3. e5 {[%clk 0:02:59]}  Nd5 {[%clk 0:02:58]} 4. d4 {[%clk 0:03:00]}  cxd4 {[%clk 0:02:58]} 5. Nf3 {[%clk 0:03:00]}  e6 {[%clk 0:02:58]} 6. cxd4 {[%clk 0:03:00]}  d6 {[%clk 0:02:58]} 7. Nc3 {[%clk 0:02:59]}  Nxc3 {[%clk 0:02:57]} 8. bxc3 {[%clk 0:03:00]}  Qc7 {[%clk 0:02:58]} 9. Bd2 {[%clk 0:02:59]}  Nd7 {[%clk 0:02:58]} 10. exd6 {[%clk 0:02:52]}  Bxd6 {[%clk 0:02:59]} 11. Bd3 {[%clk 0:02:52]}  Nf6 {[%clk 0:02:55]} 12. Qe2 {[%clk 0:02:44]}  b6 {[%clk 0:02:55]} 13. Bb5+ {[%clk 0:02:36]}  Bd7 {[%clk 0:02:54]} 14. Bxd7+ {[%clk 0:02:27]}  Nxd7 {[%clk 0:02:54]} 15. O-O {[%clk 0:02:25]}  O-O {[%clk 0:02:47]} 16. a4 {[%clk 0:02:24]}  Rac8 {[%clk 0:02:45]} 17. a5 {[%clk 0:02:09]}  bxa5 {[%clk 0:02:25]} 18. Qa6 {[%clk 0:02:07]}  Nb6 {[%clk 0:02:21]} 19. Qxa5 {[%clk 0:01:34]}  Nc4 {[%clk 0:02:18]} 20. Qxa7 {[%clk 0:01:30]}  Nxd2 {[%clk 0:02:15]} 21. Nxd2 {[%clk 0:01:29]}  Bxh2+ {[%clk 0:02:15]} 22. Kh1 {[%clk 0:01:29]}  Qxc3 {[%clk 0:01:55]} 23. Nf3 {[%clk 0:01:07]}  Bf4 {[%clk 0:01:46]} 24. Qa3 {[%clk 0:00:31]}  Qc7 {[%clk 0:01:40]} 25. Rfe1 {[%clk 0:00:26]}  Rfd8 {[%clk 0:01:30]} 26. Qd3 {[%clk 0:00:22]}  h6 {[%clk 0:01:19]} 27. Qe4 {[%clk 0:00:20]}  Bd6 {[%clk 0:01:14]} 28. Rad1 {[%clk 0:00:19]}  Qc3 {[%clk 0:01:07]} 29. g3 {[%clk 0:00:17]}  Bf8 {[%clk 0:01:06]} 30. Kg2 {[%clk 0:00:17]}  Qb2 {[%clk 0:01:04]} 31. Rd2 {[%clk 0:00:16]}  Qb8 {[%clk 0:01:02]} 32. Rh1 {[%clk 0:00:15]}  Qa8 {[%clk 0:01:00]} 33. Qxa8 {[%clk 0:00:14]}  Rxa8 {[%clk 0:01:01]} 34. Rh5 {[%clk 0:00:12]}  Rd7 {[%clk 0:00:59]} 35. d5 {[%clk 0:00:12]}  Rad8 {[%clk 0:00:57]} 36. Kf1 {[%clk 0:00:09]}  exd5 {[%clk 0:00:56]} 37. Ke2 {[%clk 0:00:09]}  d4 {[%clk 0:00:53]} 38. Rd3 {[%clk 0:00:09]}  Rc8 {[%clk 0:00:51]} 39. Rh4 {[%clk 0:00:08]}  Rc2+ {[%clk 0:00:51]} 40. Rd2 {[%clk 0:00:09]}  d3+ {[%clk 0:00:50]} 41. Kd1 {[%clk 0:00:09]}  Rxd2+ {[%clk 0:00:48]} 42. Kxd2 {[%clk 0:00:09]}  Bc5 {[%clk 0:00:49]} 43. Ne5 {[%clk 0:00:07]}  Ra7 {[%clk 0:00:44]} 44. Nxd3 {[%clk 0:00:08]}  Ra2+ {[%clk 0:00:42]} 45. Kc3 {[%clk 0:00:08]}  Bxf2 {[%clk 0:00:41]} 46. Rh2 {[%clk 0:00:08]}  Ra3+ {[%clk 0:00:34]} 47. Kd2 {[%clk 0:00:08]}  Bd4 {[%clk 0:00:30]} 48. Rg2 {[%clk 0:00:04]}  Ra2+ {[%clk 0:00:30]} 0-1


[Site "https://www.chess.com"]

[Event "Titled Tuesday Blitz August 22 Late 2023"]
[White "Sala, Giulia"]
[Black "Burke, Paul"]
[WhiteFideId "2840451"]
[BlackFideId "2605767"]
[WhiteElo "2321"]
[BlackElo "1857"]
[Result "1-0"]
[Round "3"]
[TimeControl "180+1"]
[Date "2023.08.22"]
[WhiteClock "0:01:13"]
[BlackClock "0:00:40"]
[Board "156"]

1. d4 {[%clk 0:03:00]}  a6 {[%clk 0:02:59]} 2. e4 {[%clk 0:02:56]}  d6 {[%clk 0:02:59]} 3. Be3 {[%clk 0:02:51]}  g6 {[%clk 0:02:59]} 4. Qd2 {[%clk 0:02:51]}  h6 {[%clk 0:02:59]} 5. Nc3 {[%clk 0:02:31]}  Bg7 {[%clk 0:02:58]} 6. f3 {[%clk 0:02:29]}  Nd7 {[%clk 0:02:58]} 7. h4 {[%clk 0:02:27]}  e5 {[%clk 0:02:57]} 8. d5 {[%clk 0:02:26]}  Ne7 {[%clk 0:02:56]} 9. g4 {[%clk 0:02:26]}  f5 {[%clk 0:02:52]} 10. gxf5 {[%clk 0:02:24]}  gxf5 {[%clk 0:02:51]} 11. O-O-O {[%clk 0:02:11]}  f4 {[%clk 0:02:49]} 12. Bf2 {[%clk 0:02:11]}  Nf6 {[%clk 0:02:46]} 13. a4 {[%clk 0:02:09]}  Bd7 {[%clk 0:02:39]} 14. b3 {[%clk 0:02:06]}  O-O {[%clk 0:02:32]} 15. Kb2 {[%clk 0:01:56]}  Qe8 {[%clk 0:02:31]} 16. a5 {[%clk 0:01:47]}  b6 {[%clk 0:02:26]} 17. axb6 {[%clk 0:01:46]}  cxb6 {[%clk 0:02:25]} 18. Ra1 {[%clk 0:01:45]}  b5 {[%clk 0:02:22]} 19. Nge2 {[%clk 0:01:40]}  Kh7 {[%clk 0:02:03]} 20. Bh3 {[%clk 0:01:34]}  Bxh3 {[%clk 0:02:00]} 21. Rxh3 {[%clk 0:01:34]}  b4 {[%clk 0:01:31]} 22. Na4 {[%clk 0:01:34]}  Nfxd5 {[%clk 0:01:29]} 23. exd5 {[%clk 0:01:29]}  e4+ {[%clk 0:01:29]} 24. Bd4 {[%clk 0:01:28]}  Qg6 {[%clk 0:01:01]} 25. Rg1 {[%clk 0:01:20]}  Bxd4+ {[%clk 0:00:57]} 26. Qxd4 {[%clk 0:01:20]}  Qf6 {[%clk 0:00:56]} 27. fxe4 {[%clk 0:01:13]}  f3 {[%clk 0:00:40]} 28. Rxf3 {[%clk 0:01:13]} 1-0


[Site "https://www.chess.com"]